[Event "21st Sants Open 2019"]
[Site "Cotxeres de Sants"]
[Date "2019.08.23"]
[Round "1.2"]
[White "Saguillo Gonzalez, Oriol"]
[Black "Vaibhav, Suri"]
[Result "0-1"]
[ECO "B51"]
[WhiteElo "2117"]
[BlackElo "2591"]
[Annotator "ChessBase"]
[PlyCount "66"]
[EventDate "2019.08.22"]
[EventType "swiss"]
[EventCountry "ESP"]
[SourceTitle "playchess.com"]
[Source "ChessBase"]
[SourceQuality "1"]
[TimeControl "40/5400+30:1800+30"]

1. e4 {[%emt 0:00:00]} c5 {[%emt 0:00:01]} 2. Nf3 {[%emt 0:00:00]} d6 {[%emt 0:00:06]} 3. Bb5+ {[%emt 0:07:01]} Nd7 {[%emt 0:00:57]} 4. O-O {[%emt 0:00:10]} a6 {[%emt 0:01:08]} 5. Bd3 {[%emt 0:00:06]} Ngf6 {[%emt 0:00:14]} 6. c3 {[%emt 0:01:45]} b5 {[%emt 0:02:06]} 7. Bc2 {[%emt 0:01:01]} Bb7 {[%emt 0:00:23]} 8. Qe2 {[%emt 0:00:49]} e5 {[%emt 0:10:24]} 9. Rd1 {[%emt 0:06:49]} Be7 {[%emt 0:07:53]} 10. a4 {[%emt 0:00:45]} O-O {[%emt 0:04:43]} 11. d3 {[%emt 0:04:08]} Qc7 {[%emt 0:03:50]} 12. Nbd2 {[%emt 0:00:54]} d5 {[%emt 0:08:56]} 13. Nf1 {[%emt 0:10:12]} Rfe8 {[%emt 0:08:09]} 14. Ng3 {[%emt 0:06:27]} Bf8 {[%emt 0:03:03]} 15. h3 {[%emt 0:06:36]} Rac8 {[%emt 0:03:55]} 16. axb5 {[%emt 0:10:29]} axb5 {[%emt 0:00:06]} 17. Nh2 {[%emt 0:05:20]} g6 {[%emt 0:08:36]} 18. Bg5 {[%emt 0:08:16]} Bg7 {[%emt 0:01:00]} 19. Ng4 {[%emt 0:07:31]} Nxg4 {[%emt 0:01:03]} 20. Qxg4 {[%emt 0:00:11]} d4 {[%emt 0:01:35]} 21. Bd2 {[%emt 0:08:10]} c4 {[%emt 0:04:18]} 22. Qe2 {[%emt 0:02:57]} Nf8 {[%emt 0:02:01]} 23. Rdc1 {[%emt 0:01:54]} Ne6 {[%emt 0:01:59]} 24. Qf1 {[%emt 0:03:15]} h5 {[%emt 0:03:38]} 25. b3 {[%emt 0:01:51]} b4 {[%emt 0:02:58]} 26. bxc4 {[%emt 0:01:22]} bxc3 {[%emt 0:01:53]} 27. Be1 {[%emt 0:00:23]} Bc6 {[%emt 0:01:10]} 28. Ne2 {[%emt 0:01:54]} Rb8 {[%emt 0:00:34]} 29. Rcb1 {[%emt 0:00:43]} Rxb1 {[%emt 0:04:36]} 30. Rxb1 {[%emt 0:00:05]} Rb8 {[%emt 0:00:15]} 31. Rxb8+ {[%emt 0:03:23]} Qxb8 {[%emt 0:00:02]} 32. Ng3 {[%emt 0:00:15]} h4 {[%emt 0:00:47]} 33. Nh1 {[%emt 0:00:08]} Qb2 {[%emt 0:00:04]} 0-1

[Event "21st Sants Open 2019"]
[Site "Cotxeres de Sants"]
[Date "2019.08.23"]
[Round "1.3"]
[White "Santos Latasa, Jaime"]
[Black "Tirado, Juan Camilo"]
[Result "1-0"]
[ECO "B50"]
[WhiteElo "2586"]
[BlackElo "2114"]
[Annotator "ChessBase"]
[PlyCount "89"]
[EventDate "2019.08.22"]
[EventType "swiss"]
[EventCountry "ESP"]
[SourceTitle "playchess.com"]
[Source "ChessBase"]
[SourceQuality "1"]
[TimeControl "40/5400+30:1800+30"]

1. e4 {[%emt 0:10:38]} c5 {[%emt 0:04:23]} 2. Nf3 {[%emt 0:00:08]} d6 {[%emt 0:00:31]} 3. Nc3 {[%emt 0:00:05]} Nf6 {[%emt 0:08:06]} 4. e5 {[%emt 0:00:55]} dxe5 {[%emt 0:03:37]} 5. Nxe5 {[%emt 0:00:08]} e6 {[%emt 0:02:32]} 6. Bb5+ {[%emt 0:00:23]} Bd7 {[%emt 0:03:37]} 7. Nxd7 {[%emt 0:01:18]} Nbxd7 {[%emt 0:03:37]} 8. O-O {[%emt 0:01:02]} a6 {[%emt 0:08:29]} 9. Be2 {[%emt 0:00:15]} Be7 {[%emt 0:00:08]} 10. a4 {[%emt 0:01:02]} O-O {[%emt 0:01:53]} 11. Re1 {[%emt 0:00:50]} Qc7 {[%emt 0:02:29]} 12. d3 {[%emt 0:00:14]} Rfd8 {[%emt 0:00:53]} 13. Bf1 {[%emt 0:00:12]} Nb6 {[%emt 0:14:00]} 14. Qf3 {[%emt 0:02:53]} Nbd5 {[%emt 0:03:26]} 15. Nb1 {[%emt 0:01:25]} Rab8 {[%emt 0:08:38]} 16. Bd2 {[%emt 0:01:50]} Nb4 {[%emt 0:07:32]} 17. Na3 {[%emt 0:00:18]} Nc6 {[%emt 0:01:11]} 18. Nc4 {[%emt 0:01:11]} Nd4 {[%emt 0:05:10]} 19. Qd1 {[%emt 0:00:11]} b6 {[%emt 0:01:21]} 20. g3 {[%emt 0:00:34]} Nd5 {[%emt 0:02:37]} 21. Bg2 {[%emt 0:00:39]} Qa7 {[%emt 0:04:24]} 22. Ne5 {[%emt 0:01:34]} Bf6 {[%emt 0:01:25]} 23. Ng4 {[%emt 0:02:05]} Qe7 {[%emt 0:01:12]} 24. c3 {[%emt 0:02:22]} Nc6 {[%emt 0:01:18]} 25. h4 {[%emt 0:00:10]} Rbc8 {[%emt 0:02:17]} 26. Be4 {[%emt 0:01:13]} Rd7 {[%emt 0:02:41]} 27. Qf3 {[%emt 0:00:32]} Qd8 {[%emt 0:00:59]} 28. Nxf6+ {[%emt 0:02:34]} Qxf6 {[%emt 0:00:16]} 29. Qe2 {[%emt 0:00:45]} h6 {[%emt 0:01:39]} 30. Rad1 {[%emt 0:00:41]} Rcd8 {[%emt 0:00:56]} 31. f4 {[%emt 0:00:22]} a5 {[%emt 0:01:56]} 32. Qf2 {[%emt 0:01:09]} Rd6 {[%emt 0:00:20]} 33. g4 {[%emt 0:00:53]} g6 {[%emt 0:01:51]} 34. g5 {[%emt 0:00:53]} hxg5 {[%emt 0:00:51]} 35. hxg5 {[%emt 0:00:06]} Qg7 {[%emt 0:00:15]} 36. Qf3 {[%emt 0:00:22]} Nde7 {[%emt 0:00:28]} 37. Kf2 {[%emt 0:00:39]} R8d7 {[%emt 0:00:50]} 38. Rh1 {[%emt 0:00:38]} e5 {[%emt 0:00:35]} 39. Rh4 {[%emt 0:03:15]} f5 {[%emt 0:00:33]} 40. gxf6 {[%emt 0:00:00]} Rxf6 {[%emt 0:00:00]} 41. Rdh1 {[%emt 0:00:13]} Rfd6 {[%emt 0:12:32]} 42. Qh3 {[%emt 0:01:31]} Kf8 {[%emt 0:00:22]} 43. Rh7 {[%emt 0:00:22]} Qf6 {[%emt 0:00:07]} 44. Qh6+ {[%emt 0:00:07]} Ke8 {[%emt 0:00:37]} 45. Rh8+ {[%emt 0:00:06]} 1-0

[Event "21st Sants Open 2019"]
[Site "Cotxeres de Sants"]
[Date "2019.08.23"]
[Round "1.5"]
[White "Idani, Pouya"]
[Black "Moreby, James"]
[Result "1-0"]
[ECO "B53"]
[WhiteElo "2581"]
[BlackElo "2108"]
[Annotator "ChessBase"]
[PlyCount "91"]
[EventDate "2019.08.22"]
[EventType "swiss"]
[EventCountry "ESP"]
[SourceTitle "playchess.com"]
[Source "ChessBase"]
[SourceQuality "1"]
[TimeControl "40/5400+30:1800+30"]

1. e4 c5 2. Nf3 d6 3. d4 cxd4 4. Qxd4 Nc6 5. Bb5 Bd7 6. Qd3 Nf6 7. c4 g6 8. O-O Bg7 9. Nc3 O-O 10. h3 a6 11. Bxc6 Bxc6 12. Nd4 Rc8 13. Be3 Nd7 14. Qd2 Nc5 15. f3 Qd7 16. Rac1 Ne6 17. Nxc6 bxc6 18. c5 d5 19. exd5 Bxc3 20. Rxc3 cxd5 21. f4 Rfd8 22. f5 gxf5 23. Bh6 f6 24. Rg3+ Kh8 25. Rxf5 Rxc5 26. Qf2 Rg8 27. Rxg8+ Kxg8 28. Qg3+ Kh8 29. Qg4 Rc8 30. Rh5 Rg8 31. Qf5 Rg6 32. Be3 Nf8 33. Qxd7 Nxd7 34. Rxd5 Ne5 35. b3 Nc6 36. Rc5 Nb4 37. Bd2 Nd3 38. Ra5 f5 39. Rxf5 Rc6 40. Kf1 Nc1 41. Ra5 Rf6+ 42. Ke1 Re6+ 43. Kd1 Ne2 44. Rg5 h6 45. Rh5 Kh7 46. Rxh6+ 1-0

[Event "21st Sants Open 2019"]
[Site "Cotxeres de Sants"]
[Date "2019.08.23"]
[Round "1.6"]
[White "Sanpera Bonet, Juan Carlos"]
[Black "Henriquez Villagra, Cristobal"]
[Result "0-1"]
[ECO "A01"]
[WhiteElo "2107"]
[BlackElo "2562"]
[Annotator "ChessBase"]
[PlyCount "84"]
[EventDate "2019.08.22"]
[EventType "swiss"]
[EventCountry "ESP"]
[SourceTitle "playchess.com"]
[Source "ChessBase"]
[SourceQuality "1"]
[TimeControl "40/5400+30:1800+30"]

1. b3 d5 2. Bb2 c5 3. e3 Nc6 4. Nf3 a6 5. Be2 Nf6 6. Bxf6 gxf6 7. c4 d4 8. d3 Rg8 9. O-O dxe3 10. fxe3 Bh6 11. Qd2 Nd4 12. Nc3 Nf5 13. Nd1 Qd6 14. d4 cxd4 15. Nxd4 Nh4 16. Rf2 Bh3 17. Bf3 Rd8 18. Kh1 Nxf3 19. Nxf3 Qxd2 20. Nxd2 Bxg2+ 21. Rxg2 Rxg2 22. Kxg2 Rxd2+ 23. Kf3 Rxh2 24. Nf2 Rh5 25. Rd1 Rf5+ 26. Ke2 Bf8 27. b4 h5 28. Ne4 e6 29. c5 Be7 30. a4 h4 31. Rh1 Rh5 32. b5 axb5 33. axb5 f5 34. Ng3 Rg5 35. c6 bxc6 36. bxc6 Rxg3 37. Ra1 Bd6 38. Ra8+ Ke7 39. Ra7+ Kf6 40. Rd7 Be5 41. c7 Bxc7 42. Rxc7 Rg8 0-1

[Event "21st Sants Open 2019"]
[Site "Cotxeres de Sants"]
[Date "2019.08.23"]
[Round "1.7"]
[White "Hillarp Persson, Tiger"]
[Black "Maia, Jose Eduardo Bastos "]
[Result "1-0"]
[ECO "A14"]
[WhiteElo "2558"]
[BlackElo "2107"]
[Annotator "ChessBase"]
[PlyCount "55"]
[EventDate "2019.08.22"]
[EventType "swiss"]
[EventCountry "ESP"]
[SourceTitle "playchess.com"]
[Source "ChessBase"]
[SourceQuality "1"]
[TimeControl "40/5400+30:1800+30"]

1. c4 {[%emt 0:00:00]} e6 {[%emt 0:00:00]} 2. Nf3 {[%emt 0:00:13]} d5 {[%emt 0:00:00]} 3. g3 {[%emt 0:00:09]} Nf6 {[%emt 0:00:00]} 4. Bg2 {[%emt 0:00:06]} Be7 {[%emt 0:00:46]} 5. O-O {[%emt 0:00:19]} O-O {[%emt 0:00:29]} 6. Qc2 {[%emt 0:02:53]} c6 {[%emt 0:02:45]} 7. b3 {[%emt 0:00:40]} b6 {[%emt 0:03:37]} 8. d3 {[%emt 0:00:32]} Bb7 {[%emt 0:02:52]} 9. e4 {[%emt 0:00:24]} Na6 {[%emt 0:03:28]} 10. Qe2 {[%emt 0:06:07]} d4 {[%emt 0:08:45]} 11. Nbd2 {[%emt 0:09:23]} c5 {[%emt 0:09:27]} 12. e5 {[%emt 0:02:39]} Ne8 {[%emt 0:01:43]} 13. h4 {[%emt 0:04:32]} Qd7 {[%emt 0:03:04]} 14. Ne4 {[%emt 0:12:05]} b5 {[%emt 0:20:27]} 15. h5 {[%emt 0:09:04]} bxc4 {[%emt 0:00:21]} 16. bxc4 {[%emt 0:00:07]} Qa4 {[%emt 0:04:37]} 17. h6 {[%emt 0:04:22]} g6 {[%emt 0:00:16]} 18. Bg5 {[%emt 0:01:07]} Bxg5 {[%emt 0:03:49]} 19. Nfxg5 {[%emt 0:00:14]} Qd7 {[%emt 0:10:41]} 20. Rab1 {[%emt 0:05:47]} Bc6 {[%emt 0:04:27]} 21. Qf3 {[%emt 0:04:55]} Qe7 {[%emt 0:14:53]} 22. Nf6+ {[%emt 0:03:04]} Qxf6 {[%emt 0:02:35]} 23. Qxf6 {[%emt 0:00:55]} Nxf6 {[%emt 0:01:16]} 24. Bxc6 {[%emt 0:00:07]} Ng4 {[%emt 0:00:35]} 25. Bxa8 {[%emt 0:00:09]} Rxa8 {[%emt 0:00:06]} 26. Rb7 {[%emt 0:00:29]} Nxe5 {[%emt 0:00:24]} 27. Re1 {[%emt 0:01:26]} f6 {[%emt 0:01:20]} 28. Rg7+ {[%emt 0:00:13] Nb8} 1-0

[Event "21st Sants Open 2019"]
[Site "Cotxeres de Sants"]
[Date "2019.08.23"]
[Round "1.8"]
[White "Laustsen, Lars"]
[Black "Puranik, Abhimanyu"]
[Result "0-1"]
[ECO "D78"]
[WhiteElo "2107"]
[BlackElo "2550"]
[Annotator "ChessBase"]
[PlyCount "84"]
[EventDate "2019.08.22"]
[EventType "swiss"]
[EventCountry "ESP"]
[SourceTitle "playchess.com"]
[Source "ChessBase"]
[SourceQuality "1"]
[TimeControl "40/5400+30:1800+30"]

1. d4 {[%emt 0:00:00]} Nf6 {[%emt 0:00:00]} 2. c4 {[%emt 0:00:00]} g6 {[%emt 0:00:00]} 3. g3 {[%emt 0:00:00]} c6 {[%emt 0:00:00]} 4. Bg2 {[%emt 0:00:00]} d5 {[%emt 0:00:00]} 5. Nf3 {[%emt 0:00:00]} Bg7 {[%emt 0:00:02]} 6. O-O {[%emt 0:00:00]} O-O {[%emt 0:00:08]} 7. Qb3 {[%emt 0:00:11]} dxc4 {[%emt 0:02:50]} 8. Qxc4 {[%emt 0:00:07]} Bf5 {[%emt 0:00:23]} 9. Nc3 {[%emt 0:01:28]} Nbd7 {[%emt 0:00:53]} 10. Rd1 {[%emt 0:04:26]} Bc2 {[%emt 0:10:25]} 11. Rd2 {[%emt 0:03:23]} Nb6 {[%emt 0:00:39]} 12. Qc5 {[%emt 0:00:19]} Ne4 {[%emt 0:00:49]} 13. Nxe4 {[%emt 0:00:17]} Bxe4 {[%emt 0:00:04]} 14. Ne5 {[%emt 0:16:57]} Bxg2 {[%emt 0:00:58]} 15. Kxg2 {[%emt 0:00:05]} Nd7 {[%emt 0:19:34]} 16. Nxd7 {[%emt 0:01:29]} Qxd7 {[%emt 0:00:02]} 17. Rd3 {[%emt 0:08:21]} Rfd8 {[%emt 0:02:51]} 18. Be3 {[%emt 0:04:08]} Qe6 {[%emt 0:00:58]} 19. b3 {[%emt 0:19:47]} Rd5 {[%emt 0:01:49]} 20. Qc4 {[%emt 0:02:59]} Rad8 {[%emt 0:03:34]} 21. Rad1 {[%emt 0:10:05]} g5 {[%emt 0:00:52]} 22. h3 {[%emt 0:05:53]} h5 {[%emt 0:03:15]} 23. Qc1 {[%emt 0:04:36]} g4 {[%emt 0:02:22]} 24. hxg4 {[%emt 0:01:10]} hxg4 {[%emt 0:01:10]} 25. Qd2 {[%emt 0:09:54]} Rh5 {[%emt 0:03:32]} 26. Bf4 {[%emt 0:02:34]} Qf5 {[%emt 0:08:54]} 27. f3 {[%emt 0:01:28]} gxf3+ {[%emt 0:01:36]} 28. exf3 {[%emt 0:00:10]} Qh3+ {[%emt 0:00:33]} 29. Kf2 {[%emt 0:00:04]} Rhd5 {[%emt 0:01:58]} 30. Qe3 {[%emt 0:01:03]} Qh2+ {[%emt 0:00:54]} 31. Kf1 {[%emt 0:00:04]} e6 {[%emt 0:01:15]} 32. g4 {[%emt 0:00:37]} Qxa2 {[%emt 0:04:16]} 33. Be5 {[%emt 0:00:56]} f6 {[%emt 0:05:22]} 34. Bf4 {[%emt 0:00:50]} Kf7 {[%emt 0:04:01]} 35. g5 {[%emt 0:00:46]} Rh8 {[%emt 0:01:57]} 36. R3d2 {[%emt 0:01:06]} Qa6+ {[%emt 0:00:06]} 37. Kg1 {[%emt 0:00:04]} fxg5 {[%emt 0:01:44]} 38. Bxg5 {[%emt 0:01:10]} Qb6 {[%emt 0:01:02]} 39. f4 {[%emt 0:01:33]} Qb4 {[%emt 0:00:51]} 40. f5 {[%emt 0:00:00]} exf5 {[%emt 0:00:00]} 41. Qf3 {[%emt 0:04:52]} Qd6 {[%emt 0:06:25]} 42. Bf4 {[%emt 0:02:20]} Qg6+ {[%emt 0:01:50]} 0-1

[Event "21st Sants Open 2019"]
[Site "Cotxeres de Sants"]
[Date "2019.08.23"]
[Round "1.9"]
[White "Antal, Gergely"]
[Black "Chirivi C, Jenny Astrid"]
[Result "1-0"]
[ECO "B47"]
[WhiteElo "2549"]
[BlackElo "2104"]
[Annotator "ChessBase"]
[PlyCount "71"]
[EventDate "2019.08.22"]
[EventType "swiss"]
[EventCountry "ESP"]
[SourceTitle "playchess.com"]
[Source "ChessBase"]
[SourceQuality "1"]
[TimeControl "40/5400+30:1800+30"]

1. e4 {[%emt 0:05:46]} c5 {[%emt 0:00:00]} 2. Nf3 {[%emt 0:00:06]} e6 {[%emt 0:00:03]} 3. d4 {[%emt 0:00:12]} cxd4 {[%emt 0:00:17]} 4. Nxd4 {[%emt 0:00:05]} Nc6 {[%emt 0:01:42]} 5. Nc3 {[%emt 0:00:43]} Qc7 {[%emt 0:00:28]} 6. g3 {[%emt 0:06:14]} Nf6 {[%emt 0:05:07]} 7. Bg2 {[%emt 0:00:07]} a6 {[%emt 0:00:35]} 8. O-O {[%emt 0:00:36]} Be7 {[%emt 0:02:07]} 9. Re1 {[%emt 0:00:37]} d6 {[%emt 0:05:52]} 10. Nxc6 {[%emt 0:00:13]} bxc6 {[%emt 0:00:15]} 11. e5 {[%emt 0:00:06]} dxe5 {[%emt 0:10:52]} 12. Rxe5 {[%emt 0:00:09]} Bb7 {[%emt 0:07:30]} 13. Re1 {[%emt 0:15:56]} Rd8 {[%emt 0:05:06]} 14. Qe2 {[%emt 0:04:45]} O-O {[%emt 0:02:51]} 15. Bf4 {[%emt 0:05:12]} Bd6 {[%emt 0:03:56]} 16. Bg5 {[%emt 0:00:44]} Be7 {[%emt 0:02:54]} 17. Bf4 {[%emt 0:15:54]} Bd6 {[%emt 0:07:56]} 18. Bxd6 {[%emt 0:00:05]} Rxd6 {[%emt 0:01:26]} 19. Rad1 {[%emt 0:00:06]} Rfd8 {[%emt 0:04:57]} 20. Rxd6 {[%emt 0:00:05]} Rxd6 {[%emt 0:00:26]} 21. Qc4 {[%emt 0:06:10]} h6 {[%emt 0:06:31]} 22. Na4 {[%emt 0:06:52]} Nd7 {[%emt 0:03:14]} 23. Qb4 {[%emt 0:04:57]} a5 {[%emt 0:03:59]} 24. Qh4 {[%emt 0:03:39]} e5 {[%emt 0:06:04]} 25. Qe7 {[%emt 0:01:38]} Re6 {[%emt 0:00:24]} 26. Qa3 {[%emt 0:00:06]} Qd6 {[%emt 0:04:56]} 27. Qc3 {[%emt 0:06:42]} Qb4 {[%emt 0:04:08]} 28. Qxb4 {[%emt 0:00:08]} axb4 {[%emt 0:00:04]} 29. Bh3 {[%emt 0:02:03]} Rd6 {[%emt 0:01:55]} 30. Bxd7 {[%emt 0:00:06]} Rxd7 {[%emt 0:00:05]} 31. Nc5 {[%emt 0:00:03]} Re7 {[%emt 0:00:30]} 32. Re4 {[%emt 0:04:46]} Bc8 {[%emt 0:01:31]} 33. Rxb4 {[%emt 0:00:05]} Bf5 {[%emt 0:00:13]} 34. a4 {[%emt 0:00:07]} e4 {[%emt 0:02:50]} 35. a5 {[%emt 0:00:30]} Re5 {[%emt 0:01:09]} 36. a6 {[%emt 0:00:17]} 1-0

[Event "21st Sants Open 2019"]
[Site "Cotxeres de Sants"]
[Date "2019.08.23"]
[Round "1.10"]
[White "Damianou, Ioannis"]
[Black "Nigalidze, Gaioz"]
[Result "1/2-1/2"]
[ECO "A36"]
[WhiteElo "2103"]
[BlackElo "2534"]
[Annotator "ChessBase"]
[PlyCount "90"]
[EventDate "2019.08.22"]
[EventType "swiss"]
[EventCountry "ESP"]
[SourceTitle "playchess.com"]
[Source "ChessBase"]
[SourceQuality "1"]
[TimeControl "40/5400+30:1800+30"]

1. c4 {[%emt 0:00:00]} c5 {[%emt 0:00:00]} 2. g3 {[%emt 0:00:00]} Nc6 {[%emt 0:00:00]} 3. Bg2 {[%emt 0:00:00]} g6 {[%emt 0:00:00]} 4. Nc3 {[%emt 0:00:00]} Bg7 {[%emt 0:00:00]} 5. b3 {[%emt 0:01:33]} e6 {[%emt 0:04:22]} 6. Ba3 {[%emt 0:02:21]} d6 {[%emt 0:01:19]} 7. e3 {[%emt 0:01:08]} Nge7 {[%emt 0:00:17]} 8. Nge2 {[%emt 0:00:10]} O-O {[%emt 0:00:41]} 9. O-O {[%emt 0:00:17]} Qa5 {[%emt 0:05:01]} 10. Qc1 {[%emt 0:17:28]} Rd8 {[%emt 0:24:19]} 11. Bb2 {[%emt 0:26:53]} a6 {[%emt 0:11:21]} 12. Ne4 {[%emt 0:09:30]} e5 {[%emt 0:00:57]} 13. f4 {[%emt 0:05:30]} f5 {[%emt 0:02:29]} 14. Nf2 {[%emt 0:03:38]} Be6 {[%emt 0:04:46]} 15. Rd1 {[%emt 0:02:33]} Qb6 {[%emt 0:07:44]} 16. Bc3 {[%emt 0:06:38]} Qa7 {[%emt 0:15:53]} 17. a3 {[%emt 0:08:46]} b5 {[%emt 0:00:50]} 18. d3 {[%emt 0:01:02]} Rab8 {[%emt 0:01:35]} 19. Ra2 {[%emt 0:01:59]} Bf7 {[%emt 0:00:23]} 20. Qa1 {[%emt 0:00:27]} Qc7 {[%emt 0:00:36]} 21. Rad2 {[%emt 0:01:26]} h6 {[%emt 0:02:15]} 22. Qa2 {[%emt 0:01:24]} d5 {[%emt 0:02:52]} 23. fxe5 {[%emt 0:01:01]} dxc4 {[%emt 0:04:29]} 24. e6 {[%emt 0:01:24]} Bxe6 {[%emt 0:00:05]} 25. dxc4 {[%emt 0:01:01]} Bxc3 {[%emt 0:00:19]} 26. Nxc3 {[%emt 0:00:07]} Rxd2 {[%emt 0:00:35]} 27. Qxd2 {[%emt 0:01:31]} Rd8 {[%emt 0:03:28]} 28. Nd5 {[%emt 0:00:15]} Bxd5 {[%emt 0:00:31]} 29. cxd5 {[%emt 0:00:44]} Qd6 {[%emt 0:00:26]} 30. Qc3 {[%emt 0:01:36]} Ne5 {[%emt 0:00:24]} 31. e4 {[%emt 0:00:27]} c4 {[%emt 0:02:14]} 32. exf5 {[%emt 0:01:02]} gxf5 {[%emt 0:00:32]} 33. Re1 {[%emt 0:01:08]} N7g6 {[%emt 0:00:04]} 34. bxc4 {[%emt 0:00:20]} bxc4 {[%emt 0:00:05]} 35. Qc2 {[%emt 0:01:37]} Rf8 {[%emt 0:00:37]} 36. Qc3 {[%emt 0:00:45]} Re8 {[%emt 0:01:22]} 37. Rf1 {[%emt 0:00:56]} Qc5 {[%emt 0:01:19]} 38. Kh1 {[%emt 0:00:30]} Rb8 {[%emt 0:01:10]} 39. Nh3 {[%emt 0:01:10]} Kh7 {[%emt 0:01:11]} 40. Nf4 {[%emt 0:00:00]} Rb3 {[%emt 0:00:00]} 41. Qc2 {[%emt 0:03:07]} Nxf4 {[%emt 0:05:18]} 42. gxf4 {[%emt 0:05:42]} Nd3 {[%emt 0:00:53]} 43. Qe2 {[%emt 0:01:32]} Rb6 {[%emt 0:08:29]} 44. Qe8 {[%emt 0:06:03]} Rf6 {[%emt 0:04:07]} 45. h3 {[%emt 0:05:16]} Qf8 {[%emt 0:09:32]} 1/2-1/2

[Event "21st Sants Open 2019"]
[Site "Cotxeres de Sants"]
[Date "2019.08.23"]
[Round "1.11"]
[White "Cuartas, Jaime Alexander"]
[Black "Herrmann, Roman"]
[Result "1-0"]
[ECO "D30"]
[WhiteElo "2530"]
[BlackElo "2103"]
[Annotator "ChessBase"]
[PlyCount "75"]
[EventDate "2019.08.22"]
[EventType "swiss"]
[EventCountry "ESP"]
[SourceTitle "playchess.com"]
[Source "ChessBase"]
[SourceQuality "1"]
[TimeControl "40/5400+30:1800+30"]

1. d4 {[%emt 0:00:00]} Nf6 {[%emt 0:06:30]} 2. Nf3 {[%emt 0:00:00]} d5 {[%emt 0:00:52]} 3. c4 {[%emt 0:00:10]} c6 {[%emt 0:00:12]} 4. e3 {[%emt 0:00:13]} e6 {[%emt 0:01:09]} 5. Nbd2 {[%emt 0:00:15]} Nbd7 {[%emt 0:00:41]} 6. Bd3 {[%emt 0:00:09]} Bd6 {[%emt 0:04:16]} 7. O-O {[%emt 0:00:07]} O-O {[%emt 0:00:27]} 8. e4 {[%emt 0:00:20]} dxe4 {[%emt 0:00:20]} 9. Nxe4 {[%emt 0:00:07]} Nxe4 {[%emt 0:00:50]} 10. Bxe4 {[%emt 0:00:05]} Nf6 {[%emt 0:00:26]} 11. Bc2 {[%emt 0:00:10]} h6 {[%emt 0:01:39]} 12. b3 {[%emt 0:00:09]} b6 {[%emt 0:00:29]} 13. Bb2 {[%emt 0:00:05]} Bb7 {[%emt 0:00:18]} 14. Qd3 {[%emt 0:00:10]} Re8 {[%emt 0:06:28]} 15. Rfe1 {[%emt 0:01:34]} Qe7 {[%emt 0:04:16]} 16. a3 {[%emt 0:04:17]} a5 {[%emt 0:00:33]} 17. Ne5 {[%emt 0:01:01]} Rad8 {[%emt 0:02:09]} 18. Ng4 {[%emt 0:02:31]} g6 {[%emt 0:12:27]} 19. Ne5 {[%emt 0:15:19]} Nd7 {[%emt 0:12:26]} 20. Nxg6 {[%emt 0:03:46]} Qg5 {[%emt 0:02:39]} 21. Ne5 {[%emt 0:00:49]} Bxe5 {[%emt 0:06:30]} 22. Qh7+ {[%emt 0:00:14]} Kf8 {[%emt 0:00:13]} 23. dxe5 {[%emt 0:00:09]} c5 {[%emt 0:00:22]} 24. Be4 {[%emt 0:03:00]} Bxe4 {[%emt 0:00:20]} 25. Qxe4 {[%emt 0:00:11]} Nb8 {[%emt 0:02:32]} 26. Bc1 {[%emt 0:00:34]} Qh5 {[%emt 0:03:08]} 27. Qh7 {[%emt 0:03:35]} Ke7 {[%emt 0:00:48]} 28. Qxh6 {[%emt 0:00:46]} Qxh6 {[%emt 0:00:12]} 29. Bxh6 {[%emt 0:00:04]} Rd3 {[%emt 0:00:14]} 30. Bg5+ {[%emt 0:02:20]} Kf8 {[%emt 0:00:30]} 31. Re3 {[%emt 0:05:36]} Rxe3 {[%emt 0:01:46]} 32. fxe3 {[%emt 0:01:10]} Nc6 {[%emt 0:00:54]} 33. Bf6 {[%emt 0:00:10]} a4 {[%emt 0:02:27]} 34. bxa4 {[%emt 0:01:35]} Na5 {[%emt 0:00:10]} 35. Rc1 {[%emt 0:00:06]} Kg8 {[%emt 0:00:19]} 36. Rc3 {[%emt 0:00:08]} Ra8 {[%emt 0:03:56]} 37. e4 {[%emt 0:00:14]} Ra7 {[%emt 0:00:21]} 38. Rh3 {[%emt 0:00:12]} 1-0

[Event "21st Sants Open 2019"]
[Site "Cotxeres de Sants"]
[Date "2019.08.23"]
[Round "1.12"]
[White "Mundet Riera, Jaume"]
[Black "Gordon, Stephen J"]
[Result "0-1"]
[ECO "D47"]
[WhiteElo "2102"]
[BlackElo "2520"]
[Annotator "ChessBase"]
[PlyCount "52"]
[EventDate "2019.08.22"]
[EventType "swiss"]
[EventCountry "ESP"]
[SourceTitle "playchess.com"]
[Source "ChessBase"]
[SourceQuality "1"]
[TimeControl "40/5400+30:1800+30"]

1. d4 {[%emt 0:14:49]} d5 {[%emt 0:00:00]} 2. Nf3 {[%emt 0:00:09]} Nf6 {[%emt 0:00:00]} 3. c4 {[%emt 0:01:23]} e6 {[%emt 0:00:00]} 4. Nc3 {[%emt 0:00:32]} c6 {[%emt 0:00:24]} 5. e3 {[%emt 0:00:25]} Nbd7 {[%emt 0:00:20]} 6. Bd3 {[%emt 0:00:09]} dxc4 {[%emt 0:00:29]} 7. Bxc4 {[%emt 0:00:09]} b5 {[%emt 0:00:07]} 8. Bd3 {[%emt 0:00:06]} Bb7 {[%emt 0:01:32]} 9. e4 {[%emt 0:05:49]} b4 {[%emt 0:00:28]} 10. Na4 {[%emt 0:08:56]} c5 {[%emt 0:00:50]} 11. e5 {[%emt 0:00:51]} Nd5 {[%emt 0:00:07]} 12. O-O {[%emt 0:07:10]} cxd4 {[%emt 0:10:43]} 13. Re1 {[%emt 0:00:53]} g6 {[%emt 0:05:56]} 14. Nxd4 {[%emt 0:04:06]} Bg7 {[%emt 0:00:53]} 15. Bb5 {[%emt 0:05:02]} O-O {[%emt 0:03:16]} 16. Bxd7 {[%emt 0:00:42]} Qxd7 {[%emt 0:00:02]} 17. Nc5 {[%emt 0:00:08]} Qe7 {[%emt 0:01:14]} 18. Nxb7 {[%emt 0:00:15]} Qxb7 {[%emt 0:00:02]} 19. Bg5 {[%emt 0:02:40]} h6 {[%emt 0:01:37]} 20. Bh4 {[%emt 0:05:54]} Nf4 {[%emt 0:01:18]} 21. f3 {[%emt 0:00:24]} g5 {[%emt 0:17:55]} 22. Bg3 {[%emt 0:07:41]} Rfd8 {[%emt 0:01:11]} 23. Bxf4 {[%emt 0:02:55]} gxf4 {[%emt 0:00:02]} 24. Re4 {[%emt 0:00:47]} Qb6 {[%emt 0:10:47]} 25. Kh1 {[%emt 0:10:10]} Rd5 {[%emt 0:00:02]} 26. Qd2 {[%emt 0:05:22]} Rad8 {[%emt 0:00:59]} 0-1